bitfinex/quotes_ETHUSD_20251220
["timestamp","ask_amount","ask_price","bid_price","bid_amount"]
[1766193504212,0.0401788,2982.2,2981.1,3.35445399]
[1766193504420,0.0401788,2982.2,2981.4,0.347]
[1766193504658,0.0401788,2982.2,2981.6,1.2816]
[1766193505834,0.0401788,2982.2,2981.2,0.3354454]
[1766193506035,0.0401788,2982.2,2981.4,1.2816]
[1766193506564,0.0401788,2982.2,2981.2,3.35435067]
[1766193506719,0.0401788,2982.2,2981.6,0.347]
[1766193507029,0.0401788,2982.2,2981.7,1.2816]
[1766193510145,0.0421788,2982.2,2981.7,1.2816]
[1766193511846,0.0421788,2982.2,2981.3,0.001]
[1766193512238,3.39541133,2982.2,2981.3,0.001]
[1766193512432,5.06643054,2982.2,2981.4,1.2816]
[1766193513740,0.002,2982.2,2981.3,0.001]
[1766193513943,0.002,2982.7,2981.9,9.92159002]
[1766193514136,0.002,2982.7,2982.2,0.9436]
[1766193514453,0.002,2982.7,2982.4,1.2879]
[1766193515244,0.002,2982.7,2982.0,1.2879]
[1766193515450,0.002,2982.7,2981.4,6.70823989]
[1766193515451,0.002,2982.7,2981.7,0.9436]
[1766193515647,0.002,2982.7,2982.0,0.3443]
[1766193515954,0.002,2982.7,2982.1,1.2879]
[1766193517536,0.002,2982.7,2981.9,1.2879]
[1766193517737,0.002,2982.7,2981.8,1.086519]
[1766193518254,0.002,2982.7,2981.9,1.2879]
[1766193518434,0.002,2982.7,2982.1,1.2879]
[1766193521150,0.002,2982.7,2982.0,0.2374419]
[1766193521384,0.002,2982.7,2981.8,1.086519]
[1766193521552,0.002,2982.7,2981.9,0.9436]
[1766193521866,0.002,2982.7,2982.1,1.2879]
[1766193525062,0.002,2982.7,2981.8,2.374419]
[1766193525364,0.002,2982.7,2981.9,1.2879]
[1766193526856,0.0401788,2982.6,2981.8,0.001]
[1766193527162,3.35289186,2982.5,2981.8,0.001]
[1766193527468,0.0401788,2982.4,2981.8,0.001]
[1766193527673,0.33930707,2982.3,2981.8,0.001]
[1766193528678,0.33930707,2982.3,2981.3,0.001]
[1766193528927,0.33930707,2982.3,2981.3,1.2889]
[1766193529048,0.33930707,2982.3,2981.4,1.2879]
[1766193529236,3.35322915,2982.2,2981.4,1.2879]
[1766193529559,0.36925362,2982.1,2981.4,1.2879]
[1766193531171,3.72259808,2982.1,2981.4,1.2879]
[1766193531465,0.36925362,2982.1,2981.4,1.2879]
[1766193532042,0.36925362,2982.1,2981.3,0.001]
[1766193532241,0.33930707,2982.3,2981.3,0.001]
[1766193532242,0.33930707,2982.3,2981.5,0.3443]
[1766193532468,3.35331364,2982.2,2981.5,1.2879]
[1766193533297,0.33930707,2982.3,2981.3,0.001]
[1766193533504,0.33930707,2982.3,2981.7,0.3443]
[1766193533678,0.33930707,2982.3,2981.8,0.9436]
[1766193533906,0.36923383,2982.2,2981.8,0.9436]
[1766193536499,0.36923383,2982.2,2981.9,0.3443]
[1766193536671,0.36923383,2982.2,2981.9,1.2879]
[1766193536985,3.35292708,2982.5,2981.9,1.2879]
[1766193538188,3.35475598,2982.7,2981.3,3.38878206]
[1766193538360,0.002,2982.7,2981.6,3.35388939]
[1766193538558,3.35466922,2982.7,2981.8,0.9436]
[1766193538785,3.35466922,2982.7,2982.0,0.9436]
[1766193539086,4.0293983,2982.7,2982.1,1.2879]
[1766193539388,0.67672908,2982.7,2981.5,3.35396967]
[1766193539764,0.67672908,2982.7,2981.6,1.2879]
[1766193540089,0.67672908,2982.7,2981.7,1.2879]
[1766193540313,0.002,2982.2,2981.7,3.35378057]
[1766193540477,0.002,2982.2,2981.9,0.3443]
[1766193540682,0.002,2982.2,2982.1,1.2879]
[1766193543817,0.002,2982.2,2981.5,0.001]
[1766193543975,0.002,2982.2,2981.8,1.2879]
[1766193544177,0.002,2982.2,2981.5,1.2889]
[1766193544576,0.002,2982.2,2981.6,1.3142]
[1766193545879,0.002,2982.2,2981.6,0.9452]
[1766193546178,0.002,2982.2,2981.8,1.3142]
[1766193547581,0.002,2982.2,2981.5,0.001]
[1766193548113,0.002,2982.2,2981.8,1.3142]
[1766193552107,0.002,2982.2,2981.5,0.001]
[1766193552312,0.002,2982.2,2981.6,1.3142]
[1766193552513,0.002,2982.2,2981.5,0.001]
[1766193552686,0.002,2982.2,2981.7,0.369]
[1766193552886,0.002,2982.2,2981.9,1.3142]
[1766193553082,0.002,2982.7,2981.7,0.369]
[1766193553287,0.002,2982.7,2982.0,0.9452]
[1766193553503,0.002,2982.7,2982.1,1.3142]
[1766193556100,0.002,2982.7,2981.5,0.001]
[1766193556101,0.002,2982.7,2981.9,0.369]
[1766193556421,0.002,2982.7,2982.1,1.3142]
[1766193564723,0.002,2982.7,2981.9,0.4667977]
[1766193564907,0.002,2982.7,2981.9,1.2888]
[1766193565107,0.002,2982.7,2981.6,0.9294]
[1766193565307,0.002,2982.7,2981.9,0.3594]
[1766193565619,0.002,2982.7,2981.9,1.2888]
[1766193566624,3.35466704,2982.7,2981.9,1.2888]
[1766193566830,4.0294032,2982.7,2981.9,1.2888]
[1766193570933,4.0294032,2982.7,2981.9,1.2898]
[1766193573436,4.0294032,2982.7,2982.0,1.2888]
[1766193575938,0.67673616,2982.7,2982.0,1.2888]
[1766193576137,0.002,2982.7,2982.0,1.2888]
[1766193577739,0.002,2982.7,2981.9,0.001]
[1766193577944,0.002,2982.7,2982.0,1.3342]
[1766193578145,0.002,2982.7,2981.9,0.001]
[1766193578347,0.002,2982.7,2982.0,1.3342]
[1766193578645,0.002,2982.7,2981.9,0.001]
[1766193579245,0.002,2982.7,2982.0,1.3342]
[1766193580122,0.002,2982.7,2982.1,0.3736]
[1766193580328,0.002,2982.7,2982.1,1.3342]
[1766193587252,4.02945809,2982.7,2982.1,1.3342]
[1766193589355,4.02945809,2982.7,2981.9,0.001]
[1766193589649,0.0401788,2982.6,2981.9,0.001]
[1766193590024,0.0401788,2982.6,2981.9,1.3352]
[1766193590524,0.0401788,2982.6,2982.0,1.3342]
[1766193597054,3.39295906,2982.6,2982.0,1.3342]
[1766193597254,5.13042836,2982.6,2982.0,1.3342]
[1766193598056,5.12941285,2982.6,2982.0,1.3342]
[1766193600664,5.12941285,2982.6,2982.0,1.3352]
[1766193601050,5.13141285,2982.6,2982.0,1.3352]
[1766193602433,3.39394355,2982.6,2982.0,1.3352]
[1766193603565,0.04116329,2982.6,2982.0,1.3352]
[1766193603759,0.002,2982.6,2982.0,0.001]
[1766193603980,0.002,2982.6,2982.2,0.3736]
[1766193604156,0.002,2982.6,2982.2,1.3342]
[1766193618273,9.91427975,2982.6,2982.1,0.001]
[1766193618474,1.03180678,2982.5,2981.9,0.001]
[1766193618860,9.95245855,2982.3,2981.9,0.001]
[1766193619887,9.95245855,2982.3,2981.5,0.001]
[1766193620173,9.95245855,2982.3,2981.5,1.3255]
[1766193620781,0.0401788,2982.3,2981.5,1.3255]
[1766193620977,4.3847215,2982.5,2981.5,0.001]
[1766193621176,1.03180678,2982.5,2981.7,0.3408]
[1766193621378,1.03180678,2982.5,2981.9,0.3408]
[1766193621673,0.99162798,2982.5,2981.9,1.3245]
[1766193621875,4.34452023,2982.5,2981.9,1.3245]
[1766193622181,4.34452023,2982.5,2981.8,0.9837]
[1766193622480,4.34452023,2982.5,2981.9,1.3245]
[1766193622687,0.4386699,2982.4,2981.9,1.3245]
[1766193622869,0.4386699,2982.4,2981.5,0.001]
[1766193623053,0.4386699,2982.4,2981.6,1.3245]
[1766193623383,0.4386699,2982.4,2981.6,0.9837]
[1766193623573,0.4386699,2982.4,2981.8,0.9837]
[1766193623779,0.4386699,2982.4,2981.8,1.3245]
[1766193625287,3.79168279,2982.4,2981.8,1.3245]
[1766193626363,0.4386699,2982.4,2981.8,1.3245]
[1766193626683,3.79168666,2982.4,2981.8,1.3245]
[1766193633494,0.4386699,2982.4,2981.8,1.3245]
[1766193633796,0.4406699,2982.4,2981.8,1.3245]
[1766193634994,3.79367983,2982.4,2981.8,1.3245]
[1766193636895,3.79367983,2982.4,2981.5,0.001]
[1766193637095,3.79367983,2982.4,2981.6,1.3244]
[1766193638287,3.79367983,2982.4,2981.7,0.3503]
[1766193638488,3.79367983,2982.4,2981.7,1.3244]
[1766193639608,0.47853078,2982.3,2981.7,1.3244]
[1766193640102,3.83174148,2982.3,2981.5,0.001]
[1766193640320,9.9150101,2982.0,2981.5,0.001]
[1766193642373,13.26848083,2982.0,2981.5,0.001]
[1766193643080,13.26847128,2982.0,2981.5,0.001]
[1766193643402,1.32684713,2981.9,2981.5,0.001]
[1766193643980,4.68047597,2981.9,2981.3,0.001]
[1766193644905,4.72065477,2981.9,2981.3,0.001]
[1766193645111,8.07428361,2981.9,2981.3,0.001]
[1766193645309,9.9150101,2981.7,2981.0,0.001]
[1766193645495,0.99150101,2981.6,2981.0,0.001]
[1766193647011,13.26883237,2981.7,2981.0,0.001]
[1766193647513,3.35382227,2981.7,2981.0,0.001]
[1766193649315,3.35367898,2981.8,2981.0,0.001]
[1766193649503,0.0401788,2981.7,2981.0,0.001]
[1766193650605,1.32684713,2981.9,2981.0,0.001]
[1766193650807,3.35320678,2982.3,2981.2,0.3503]
[1766193651107,3.35320678,2982.3,2981.0,0.001]
[1766193651108,0.33953856,2982.2,2981.5,1.3244]
[1766193651276,0.33953856,2982.2,2981.1,3.35439863]
[1766193651484,0.33953856,2982.2,2981.4,0.9741]
[1766193651485,1.00796121,2982.2,2981.4,0.9741]
[1766193651691,1.00796121,2982.2,2981.6,0.9741]
[1766193651892,0.002,2982.4,2981.3,0.9741]
[1766193652117,0.002,2982.4,2982.1,0.3503]
[1766193652307,0.002,2982.4,2982.2,1.3244]
[1766193653990,0.002,2982.4,2981.6,0.9741]
[1766193654221,0.002,2982.4,2981.7,0.43280415]
[1766193654407,0.002,2982.4,2981.9,0.3503]
[1766193654611,0.002,2982.4,2981.9,1.3244]
[1766193657213,0.002,2982.4,2981.7,0.43280415]
[1766193657514,0.002,2982.4,2982.0,0.9741]
[1766193657688,0.002,2982.4,2981.7,1.75720415]
[1766193657894,0.002,2982.4,2981.7,1.3244]
[1766193659216,0.002,2982.4,2981.5,0.9741]
[1766193659426,0.002,2982.4,2981.8,0.3503]
[1766193659611,0.002,2982.4,2982.1,0.9741]
[1766193659806,0.002,2982.4,2981.6,0.9741]
[1766193660115,0.002,2982.4,2982.0,0.9741]
[1766193660300,0.002,2982.4,2982.0,1.3244]
[1766193667508,0.002,2982.4,2981.8,0.3748]
[1766193667826,0.002,2982.4,2981.6,1.3069]
[1766193668023,0.002,2982.4,2981.5,0.13436728]
[1766193668227,0.002,2982.4,2981.7,1.3069]
[1766193668398,0.002,2982.4,2981.8,0.3748]
[1766193668727,0.002,2982.4,2982.0,1.3069]
[1766193669424,0.002,2982.4,2981.7,1.3069]
[1766193670225,0.002,2982.4,2981.5,1.44126728]
[1766193670390,0.002,2982.4,2981.6,1.3069]
[1766193671029,0.002,2982.4,2981.5,0.61401362]
[1766193671224,0.002,2982.4,2981.7,0.3748]
[1766193671402,0.002,2982.4,2981.7,1.3069]
[1766193671602,0.002,2982.4,2981.5,0.61401362]
[1766193671603,0.002,2982.4,2981.6,1.3069]
[1766193671930,0.002,2982.6,2981.8,0.9321]
[1766193672098,0.002,2982.6,2982.0,0.9321]
[1766193672294,0.002,2982.6,2982.2,0.9321]
[1766193672496,0.002,2982.6,2982.3,1.3069]
[1766193672729,9.71207208,2983.3,2982.3,0.3748]
[1766193673031,1.00766666,2983.1,2982.3,0.3748]
[1766193673197,4.35996805,2983.1,2982.3,0.3748]
[1766193673598,4.35996805,2983.1,2982.2,0.9321]
[1766193673820,4.35996805,2983.1,2982.2,1.3069]
[1766193674629,0.002,2982.4,2982.2,1.3069]
[1766193676112,0.002,2982.4,2981.8,3.35367898]
[1766193676313,0.002,2982.4,2982.2,0.9321]
[1766193676628,0.002,2982.4,2982.3,1.3069]
[1766193679105,4.35996805,2983.1,2982.0,1.3069]
[1766193679305,1.00766666,2983.1,2982.1,0.9321]
[1766193679534,1.00766666,2983.1,2982.3,1.3192]
[1766193679734,4.35989901,2983.1,2982.4,0.3585]
[1766193679938,4.35989901,2983.1,2982.4,1.3192]
[1766193680240,4.40007781,2983.1,2982.2,1.3192]
[1766193681122,4.40207781,2983.1,2981.9,4.17780086]
[1766193681431,4.40207781,2983.1,2982.3,0.9607]
[1766193681632,4.40207781,2983.1,2982.3,1.3192]
[1766193682336,7.75431016,2983.1,2982.3,1.3192]
[1766193682740,0.0401788,2982.9,2982.3,1.3192]
[1766193683738,3.39265041,2982.9,2981.8,0.9607]
[1766193683948,0.33926504,2982.8,2981.9,0.3585]
[1766193684109,0.33926504,2982.8,2982.0,1.3192]
[1766193686952,3.69183916,2982.8,2982.0,1.3192]
[1766193688667,3.69183916,2982.8,2982.0,1.3202]
[1766193692460,9.96043454,2982.7,2982.0,0.001]
[1766193692654,1.70048478,2982.6,2982.0,0.001]
[1766193693027,5.05332469,2982.6,2982.0,0.001]
[1766193693464,0.0401788,2982.5,2981.5,1.3192]
[1766193693850,0.0401788,2982.3,2981.5,1.3192]
[1766193695441,3.39331969,2982.3,2981.5,1.3192]
[1766193695756,0.33933197,2982.2,2981.3,0.001]
[1766193695951,13.3105399,2982.5,2981.5,0.3557]
[1766193696146,13.2703611,2982.5,2981.8,0.9859]
[1766193696350,13.2703611,2982.5,2981.8,1.3416]
[1766193696935,6.06118146,2982.6,2981.5,0.9859]
[1766193697153,4.36069668,2982.6,2981.5,0.3557]
[1766193697352,3.35281674,2982.6,2981.8,0.9859]
[1766193697664,1.00787994,2982.5,2981.9,1.3416]
[1766193698646,1.04805874,2982.5,2981.6,1.3416]
[1766193698849,0.77536922,2982.4,2981.6,1.3416]
[1766193699661,0.77536922,2982.4,2981.7,1.3416]
[1766193700739,4.40095902,2982.5,2981.7,1.3416]
[1766193702558,4.40095902,2982.5,2981.5,0.001]
[1766193702866,4.40095902,2982.5,2981.7,1.3416]
[1766193704955,4.40095902,2982.5,2981.6,0.001]
[1766193705145,0.0401788,2982.3,2981.6,0.001]
[1766193705325,1.81152622,2982.3,2981.6,0.001]
[1766193709356,9.91712696,2982.2,2981.6,0.001]
[1766193714166,9.91712696,2981.9,2981.3,0.001]
[1766193714340,9.91712696,2981.6,2981.3,0.001]
[1766193714535,10.90883966,2981.6,2981.0,1.00899508]
[1766193714845,10.90883966,2981.6,2981.0,0.001]
[1766193715754,10.90883966,2981.6,2981.0,1.3426]
[1766193715957,0.9917127,2981.6,2981.1,1.3416]
[1766193716273,1.00806282,2981.8,2981.1,1.3416]
[1766193718141,1.00806282,2981.8,2981.0,0.001]
[1766193718339,1.00806282,2981.8,2981.1,1.3416]
[1766193724867,1.00806282,2981.8,2981.4,0.346]
[1766193725169,9.91712696,2982.2,2981.3,1.337]
[1766193725536,9.91712696,2982.2,2981.2,0.346]
[1766193725737,1.00794766,2982.1,2981.1,3.35445991]
[1766193725942,1.00794766,2982.1,2981.3,0.346]
[1766193726282,1.00794766,2982.1,2981.3,0.991]
[1766193726583,1.00791041,2982.2,2981.6,0.346]
[1766193726881,1.00791041,2982.2,2981.7,1.337]
[1766193729915,1.00991041,2982.2,2981.7,1.337]
[1766193730235,9.91712696,2981.9,2981.4,0.991]
[1766193730374,9.91712696,2981.5,2981.0,0.001]
[1766193730708,9.91712696,2981.2,2980.8,0.001]
[1766193730876,10.90883966,2981.2,2980.8,0.001]
[1766193731078,9.91712696,2981.2,2980.8,0.001]
[1766193731278,9.91712696,2981.2,2980.6,0.001]
[1766193732708,9.91712696,2981.2,2980.6,1.338]
[1766193735991,10.92534562,2981.2,2980.6,1.338]
[1766193736208,1.00821866,2981.2,2980.8,1.337]
[1766193738705,10.92534562,2981.2,2980.6,0.001]
[1766193739006,1.42796266,2981.1,2980.6,0.001]
[1766193740583,2.43618132,2981.1,2980.6,0.001]
[1766193741385,4.78243838,2981.1,2980.6,0.001]
[1766193741591,9.91712696,2980.9,2980.5,0.001]
[1766193742293,0.13443909,2980.8,2980.5,0.001]
[1766193747715,9.91712696,2981.7,2980.6,0.931]
[1766193747890,9.91712696,2981.7,2980.9,1.2853]
[1766193747891,0.13442689,2981.1,2980.9,1.2853]
[1766193749026,3.35356651,2981.9,2980.5,3.35613821]
[1766193749307,1.0081204,2981.5,2981.0,0.3543]
[1766193749491,1.0081204,2981.5,2981.1,1.2853]
[1766193752425,1.0081204,2981.5,2980.8,3.35475893]
[1766193752720,13.27047188,2982.1,2981.2,0.931]
[1766193752924,1.00803233,2981.7,2981.3,1.2853]
[1766193753921,1.00803233,2981.7,2980.9,3.6901159]
[1766193754224,1.00803233,2981.7,2981.3,0.9125]
[1766193754401,13.27047188,2982.1,2981.3,1.2774]
[1766193754796,1.00801201,2982.0,2981.3,1.2774]
[1766193757634,1.00801201,2982.0,2981.1,0.9125]
[1766193757928,0.002,2981.7,2981.3,1.2774]
[1766193760127,0.002,2981.7,2981.0,3.72357841]
[1766193760327,0.002,2981.7,2981.4,0.9125]
[1766193760513,0.002,2981.7,2981.4,1.2774]
[1766193763009,0.002,2982.2,2981.7,1.2774]
[1766193763932,0.002,2982.2,2981.8,0.3649]
[1766193764233,0.002,2982.2,2981.9,1.2774]
[1766193768837,0.002,2982.2,2981.5,1.2774]
[1766193769048,0.002,2982.2,2981.6,0.22852799]
[1766193769757,0.002,2982.2,2981.6,1.50592799]
[1766193770172,0.002,2982.2,2981.1,0.50670663]
[1766193770324,0.002,2982.2,2980.5,0.001]
[1766193770666,0.002,2982.2,2981.1,1.2774]
[1766193771022,1.00799169,2982.1,2981.1,1.2774]
[1766193771750,3.35345405,2982.0,2981.1,1.2774]
[1766193772861,4.36324252,2982.2,2981.1,0.3649]
[1766193773060,5.79108058,2982.2,2981.1,1.2774]
[1766193773264,5.79108058,2982.2,2981.2,1.2774]
[1766193773963,5.79108058,2982.2,2981.0,0.001]
[1766193774366,5.79108058,2982.2,2981.2,0.3649]
[1766193774660,4.26781013,2982.1,2981.3,1.2774]
[1766193777723,4.26781013,2982.1,2981.0,3.35556121]
[1766193777965,4.3632477,2982.2,2981.4,0.3649]
[1766193778162,1.00999169,2982.2,2981.7,1.2774]
[1766193778376,0.002,2982.2,2981.3,3.3542157]
[1766193778866,0.002,2982.2,2981.5,0.3649]
[1766193779031,0.002,2982.2,2981.8,0.9125]
[1766193779234,0.002,2982.2,2981.8,1.2774]
[1766193781775,0.002,2982.2,2981.4,1.2774]
[1766193782340,0.002,2982.2,2981.2,1.2774]
[1766193782545,0.002,2982.2,2981.4,1.2774]
[1766193782781,0.002,2982.2,2981.3,0.22852732]
[1766193783282,0.002,2982.2,2981.4,1.2774]
[1766193783453,0.002,2982.2,2981.5,0.3649]
[1766193783779,0.002,2982.2,2981.7,1.2774]
[1766193786081,0.002,2982.2,2981.4,0.9266]
[1766193786244,0.002,2982.2,2981.5,0.45093377]
[1766193786445,0.002,2982.2,2981.6,0.9266]
[1766193786756,0.002,2982.2,2981.8,1.2836]
[1766193790888,0.002,2982.2,2981.3,0.22852732]
[1766193791202,0.17596269,2982.5,2981.3,0.22852732]
[1766193791203,0.002,2982.5,2982.2,0.9266]
[1766193791497,0.002,2982.5,2981.7,0.9266]
[1766193791663,0.002,2982.5,2982.1,1.2836]
[1766193792571,0.002,2982.2,2982.1,1.2836]
[1766193805199,0.002,2982.2,2981.6,0.001]
[1766193805366,0.002,2982.2,2982.0,0.001]
[1766193805875,0.002,2982.2,2982.0,1.361]
[1766193809993,0.002,2982.2,2982.0,0.001]
[1766193811702,0.002,2982.2,2982.0,1.361]
[1766193812002,0.002,2982.2,2982.1,1.36]
[1766193813302,0.002,2982.5,2982.1,1.36]
[1766193814003,0.002,2982.2,2982.1,1.36]
[1766193818122,0.002,2982.2,2981.6,1.3436]
[1766193819218,0.002,2982.2,2981.7,1.3426]
[1766193830988,0.002,2982.2,2981.6,0.001]
[1766193831785,0.002,2982.2,2981.7,1.3426]
[1766193832412,0.002,2982.2,2981.6,0.001]
[1766193832618,0.002,2982.2,2981.8,0.3501]
[1766193833889,0.002,2982.2,2981.8,1.3426]
[1766193835631,0.002,2982.2,2981.8,1.3436]
[1766193836623,0.002,2982.2,2981.8,0.001]
[1766193840832,9.91504637,2982.0,2981.1,0.9925]
[1766193841126,9.91504637,2982.0,2981.1,1.3426]
[1766193841333,9.91504637,2982.0,2981.0,0.001]
[1766193841532,9.91504637,2982.0,2981.2,0.3501]
[1766193841741,9.91504637,2982.0,2981.3,0.9925]
[1766193841945,10.94030105,2982.0,2981.3,1.3426]
[1766193843432,10.94030105,2982.0,2981.8,0.001]
[1766193843644,10.94030105,2982.0,2981.3,1.3426]
[1766193845337,10.94030105,2982.0,2981.1,1.2704]
[1766193845631,10.94030105,2982.0,2981.0,3.35557609]
[1766193845809,10.94030105,2982.0,2981.4,0.3555]
[1766193846000,10.94030105,2982.0,2981.1,1.2704]
[1766193846207,10.94030105,2982.0,2981.0,0.001]
[1766193846531,10.94030105,2982.0,2981.3,0.9149]
[1766193846732,0.33750043,2982.2,2981.8,0.3555]
[1766193846937,0.002,2982.2,2981.8,1.2704]
[1766193850650,0.002,2982.2,2981.4,3.35405072]
[1766193850821,0.002,2982.2,2981.9,0.9149]
[1766193851022,0.002,2982.2,2981.9,1.2704]
[1766193853256,0.002,2982.5,2981.9,0.9149]
[1766193853546,0.002,2982.5,2981.8,0.001]
[1766193853716,0.002,2982.5,2982.0,0.9149]
[1766193853921,0.002,2982.5,2982.2,1.2704]
[1766193854345,0.002,2982.5,2981.8,0.001]
[1766193854346,0.002,2982.5,2981.9,1.2704]
[1766193854553,0.002,2982.5,2981.9,0.9149]
[1766193854753,3.35444225,2982.9,2982.4,0.3555]
[1766193854958,0.33544422,2982.8,2982.4,1.2704]
[1766193855154,0.33544422,2982.8,2982.0,0.03353454]
[1766193855336,0.002,2982.9,2982.3,0.3555]
[1766193855532,0.002,2982.9,2982.5,1.2704]
[1766193856229,0.002,2982.9,2981.8,0.001]
[1766193857054,0.002,2982.9,2981.9,1.2704]
[1766193857228,0.002,2982.9,2981.9,0.9149]
[1766193857426,0.002,2982.9,2982.1,0.9149]
[1766193857622,0.002,2982.9,2982.2,0.3555]
[1766193857855,0.002,2982.9,2982.4,0.3555]
[1766193858029,0.33762175,2982.9,2982.4,1.2704]
[1766193858659,3.69007957,2982.9,2982.4,1.2704]
[1766193859353,0.002,2982.9,2982.4,0.3555]
[1766193859568,0.002,2982.9,2981.9,1.312]
[1766193859740,0.002,2982.9,2981.8,3.35463737]
[1766193860355,0.002,2982.9,2982.0,0.3548]
[1766193860537,0.002,2982.9,2982.2,0.3548]
[1766193860736,0.002,2982.9,2982.4,0.3548]
[1766193860936,0.002,2982.9,2982.4,1.312]
[1766193861238,0.002,2982.9,2982.2,0.9572]
[1766193861439,0.002,2982.9,2982.5,0.3548]
[1766193864662,0.002,2982.9,2982.5,1.312]
[1766193865656,0.002,2983.1,2982.7,0.3548]
[1766193865963,0.002,2983.1,2982.3,3.35409696]
[1766193866164,0.002,2983.1,2982.7,0.9572]
[1766193866361,0.002,2983.1,2982.9,0.9572]
[1766193866562,0.002,2983.1,2982.9,1.312]
[1766193866962,0.002,2983.1,2982.4,1.32691433]
[1766193867264,0.002,2983.1,2982.8,0.3548]
[1766193867573,0.002,2983.1,2983.0,1.312]
[1766193868745,0.002,2983.4,2982.6,1.312]
[1766193868949,0.002,2983.4,2982.8,1.312]
[1766193869148,0.002,2983.4,2983.0,0.3548]
[1766193869362,0.002,2983.4,2983.1,0.9572]
[1766193869551,0.002,2983.4,2983.1,1.312]
[1766193870255,0.002,2983.4,2982.7,1.45798718]
[1766193870440,0.002,2983.4,2983.1,1.312]
[1766193871868,0.002,2983.4,2982.8,0.48107629]
[1766193872068,0.002,2983.4,2982.9,0.9572]
[1766193872273,0.002,2983.4,2983.1,0.9572]
[1766193872573,0.002,2983.4,2983.2,1.312]
[1766193873750,0.002,2983.4,2983.1,0.9572]
[1766193874074,0.002,2983.4,2983.2,1.312]
[1766193874973,0.002,2983.7,2983.0,0.369]
[1766193875274,0.002,2983.8,2983.6,0.369]
[1766193875473,0.002,2983.8,2983.6,1.3454]
[1766193876546,0.002,2983.8,2982.9,0.9764]
[1766193876849,0.002,2983.8,2983.0,1.47250549]
[1766193877051,0.002,2983.8,2983.2,0.369]
[1766193877271,0.002,2983.8,2983.3,1.3454]
[1766193877576,0.002,2983.8,2983.0,1.47250549]
[1766193877745,0.002,2983.8,2983.1,1.3454]
[1766193877944,0.002,2983.8,2983.2,0.28179055]
[1766193878154,0.002,2983.8,2983.4,0.369]
[1766193878466,0.002,2983.8,2983.4,1.3454]
[1766193879056,0.002,2983.8,2983.2,0.28179055]
[1766193879057,0.002,2983.8,2983.6,0.369]
[1766193879257,0.002,2983.8,2983.6,1.3454]
[1766193880988,0.002,2983.8,2983.2,0.28179055]
[1766193881187,0.002,2983.8,2983.4,1.3454]
[1766193883691,0.002,2983.8,2983.3,0.9764]
[1766193883890,0.002,2983.8,2983.6,0.369]
[1766193884095,0.002,2983.8,2983.6,1.3454]
[1766193885059,0.002,2983.8,2983.2,0.28179055]
[1766193885259,0.002,2983.8,2983.4,1.3454]
[1766193885774,0.002,2983.8,2983.1,0.001]
[1766193885971,0.99390464,2983.8,2983.1,0.001]
[1766193886373,0.99390464,2983.8,2983.1,1.3464]
[1766193886691,0.002,2983.8,2983.2,1.3454]
[1766193886863,0.002,2983.8,2983.1,0.001]
[1766193887291,0.002,2983.8,2983.2,1.3454]
[1766193888064,0.002,2983.8,2983.3,1.3454]
[1766193888562,0.002,2983.8,2983.1,0.001]
[1766193888792,0.002,2983.8,2983.1,3.35315233]
[1766193889092,0.002,2984.1,2983.7,0.9764]
[1766193889388,0.002,2984.1,2983.7,1.3454]
[1766193890667,0.002,2984.1,2983.7,0.03351543]
[1766193891097,0.002,2984.1,2983.8,0.9764]
[1766193891263,0.002,2984.1,2983.9,1.3454]
[1766193891777,3.35255336,2984.6,2983.4,3.35181103]
[1766193891982,0.002,2984.6,2983.8,0.9764]
[1766193892288,0.002,2984.6,2984.0,1.3454]
[1766193893875,0.002,2984.6,2983.6,3.35164535]
[1766193894394,0.002,2984.6,2983.6,3.35264535]
[1766193894576,0.002,2984.6,2983.9,0.369]
[1766193894905,0.002,2984.6,2984.0,1.3454]
[1766193895270,0.002,2984.6,2983.7,0.46949485]
[1766193895470,0.002,2984.6,2983.8,1.3454]
[1766193901017,0.002,2984.6,2983.7,0.46949485]
[1766193901170,0.68966492,2984.6,2983.6,1.3464]
[1766193901999,4.0402831,2984.6,2983.7,1.3454]
[1766193902202,0.68966492,2984.6,2983.9,0.9764]
[1766193902413,0.68966492,2984.6,2983.9,1.3454]
[1766193903298,0.002,2984.6,2983.7,1.3454]
[1766193903482,0.002,2984.6,2983.6,0.001]
[1766193903800,0.002,2984.6,2983.7,1.3454]
[1766193903999,0.002,2984.6,2983.6,0.001]
[1766193904197,0.002,2984.6,2983.7,0.9169]
[1766193904403,0.002,2984.6,2983.9,0.9169]
[1766193904604,0.002,2984.6,2984.0,1.287]
[1766193904977,0.002,2984.6,2983.7,1.287]
[1766193906309,9.90101844,2984.5,2983.6,0.001]
[1766193906602,25.858867,2984.4,2983.6,0.001]
[1766193906905,3.41565051,2984.3,2983.6,0.001]
[1766193907208,1.00728096,2984.3,2983.6,0.001]
[1766193908074,25.033584,2984.4,2983.6,0.001]
[1766193908274,6.7017391,2984.3,2983.6,0.001]
[1766193910914,6.7017391,2984.3,2983.5,0.001]
[1766193911099,9.90101844,2983.7,2983.1,0.001]
[1766193911291,29.46675,2984.0,2983.1,0.001]
[1766193911486,28.981389,2984.0,2983.1,0.001]